bitfinex-derivatives/quotes_BTCF0:USTF0_20251204
["timestamp","ask_amount","ask_price","bid_price","bid_amount"]
[1764861688009,0.00026903,92926.0,92922.0,0.0107597]
[1764861688208,0.00026903,92926.0,92925.0,0.00242002]
[1764861688409,0.00016109,92930.0,92929.0,0.06056]
[1764861688613,0.00016109,92930.0,92929.0,0.06298002]
[1764861689608,0.00016109,92930.0,92920.0,0.3608]
[1764861689609,0.06042,92912.0,92901.0,0.3608]
[1764861689805,0.4319809,92912.0,92911.0,0.00258152]
[1764861690009,0.0711809,92912.0,92911.0,0.0001615]
[1764861690314,0.3608,92921.0,92911.0,0.00258152]
[1764861690519,0.3608,92921.0,92920.0,0.07374002]
[1764861691106,0.39212,92921.0,92920.0,0.00242002]
[1764861691910,0.4028798,92921.0,92920.0,0.00242002]
[1764861692112,0.3608,92929.0,92928.0,0.071319]
[1764861692306,0.37171989,92930.0,92929.0,0.03387002]
[1764861692513,0.00016109,92930.0,92929.0,0.0713189]
[1764861693907,0.00116109,92930.0,92929.0,0.0713189]
[1764861694118,0.00116109,92930.0,92929.0,0.06056]
[1764861694422,0.00416109,92930.0,92929.0,0.06056]
[1764861695124,0.3715558,92957.0,92929.0,0.4]
[1764861695319,0.3608,92946.0,92945.0,0.07961]
[1764861695513,0.3715557,92957.0,92936.0,0.3608]
[1764861695713,0.3608,92957.0,92954.0,0.010756]
[1764861695909,0.3608,92957.0,92936.0,0.3608]
[1764861695910,0.0797,92951.0,92941.0,0.0107574]
[1764861696114,0.3608,92957.0,92936.0,0.3608]
[1764861696115,0.3608,92948.0,92937.0,0.00016139]
[1764861696310,0.3608,92948.0,92937.0,0.00258141]
[1764861696621,0.0107571,92945.0,92944.0,0.02918]
[1764861696823,0.0107573,92943.0,92937.0,0.00016139]
[1764861697024,0.03048,92945.0,92944.0,0.0107572]
[1764861697326,0.3715568,92948.0,92944.0,0.0107571]
[1764861697531,0.0107571,92945.0,92940.0,0.0107575]
[1764861697820,0.0107571,92945.0,92937.0,0.00016139]
[1764861697821,0.0412371,92945.0,92944.0,0.00242002]
[1764861698123,0.03048,92945.0,92944.0,0.00242002]
[1764861698516,0.03048,92945.0,92944.0,0.03160002]
[1764861698824,0.3608,92948.0,92945.0,0.0107571]
[1764861699026,0.3587,92948.0,92947.0,0.08203002]
[1764861699921,0.01102362,92966.0,92955.0,0.0107558]
[1764861699922,0.4405,92956.0,92955.0,0.0107558]
[1764861700124,0.03045,92955.0,92945.0,0.010757]
[1764861700321,0.03045,92955.0,92937.0,0.00016139]
[1764861700322,0.0107576,92941.0,92937.0,0.00016139]
[1764861700620,0.0797,92940.0,92939.0,0.0107577]
[1764861701322,0.0797,92925.0,92924.0,0.0107594]
[1764861701624,0.3608,92925.0,92914.0,0.0107606]
[1764861701821,0.0107608,92914.0,92911.0,0.02918]
[1764861702128,0.09946,92914.0,92913.0,0.00242002]
[1764861702323,0.3608,92917.0,92904.0,0.01177747]
[1764861702521,0.1102217,92905.0,92904.0,0.00016139]
[1764861702717,0.1102217,92905.0,92904.0,0.0122213]
[1764861702924,0.09946,92905.0,92904.0,0.00016139]
[1764861703117,0.3608,92909.0,92908.0,0.0107614]
[1764861703317,0.09962103,92923.0,92922.0,0.0107597]
[1764861704222,0.09962103,92923.0,92909.0,0.0107612]
[1764861704428,0.09946,92919.0,92918.0,0.0107601]
[1764861704816,0.00016103,92923.0,92906.0,0.3608]
[1764861705020,0.09946,92914.0,92913.0,0.0107608]
[1764861705222,0.0107613,92909.0,92904.0,0.01323206]
[1764861705425,0.09946,92909.0,92908.0,0.00242002]
[1764861705725,0.04838,92909.0,92908.0,0.05317002]
[1764861706027,0.3608,92918.0,92917.0,0.0615103]
[1764861706324,0.46026,92918.0,92917.0,0.06393032]
[1764861706524,0.3608,92918.0,92906.0,0.3608]
[1764861706725,0.04838,92912.0,92911.0,0.0107609]
[1764861707024,0.04838,92912.0,92904.0,0.01323206]
[1764861707025,0.09946,92905.0,92904.0,0.01323206]
[1764861707222,0.09946,92905.0,92904.0,0.01223206]
[1764861707916,0.010762,92903.0,92880.0,0.00013024]
[1764861708116,0.09946,92881.0,92880.0,0.01409052]
[1764861708324,0.3608,92886.0,92885.0,0.061514]
[1764861708512,0.3608,92886.0,92885.0,0.11170402]
[1764861709330,0.40918,92886.0,92885.0,0.11170402]
[1764861709624,0.09946,92881.0,92880.0,0.0116705]
[1764861709826,0.09946,92881.0,92880.0,0.0224351]
[1764861711420,0.09946,92881.0,92880.0,0.0314351]
[1764861711928,0.09946,92881.0,92880.0,0.0334351]
[1764861712326,0.04838,92881.0,92880.0,0.1319551]
[1764861712627,0.3608,92886.0,92885.0,0.109284]
[1764861712928,0.3608,92886.0,92885.0,0.11170402]
[1764861713628,0.09946,92881.0,92880.0,0.0226705]
[1764861714129,0.1102249,92877.0,92876.0,0.00016148]
[1764861714335,0.4710249,92877.0,92876.0,0.00016148]
[1764861714828,0.46026,92877.0,92876.0,0.0025815]
[1764861715028,0.40931024,92877.0,92876.0,0.1011015]
[1764861715632,0.40931024,92877.0,92876.0,0.02425658]
[1764861715633,0.46039024,92877.0,92876.0,0.02425658]
[1764861716222,0.46039024,92877.0,92876.0,0.02725658]
[1764861716830,0.46039024,92877.0,92876.0,0.15447658]
[1764861716831,0.00013024,92877.0,92876.0,0.15447658]
[1764861717228,0.00013024,92877.0,92876.0,0.51527658]
[1764861718224,0.00013024,92877.0,92876.0,1.01527658]
[1764861719228,0.00016148,92895.0,92876.0,1.01527658]
[1764861719422,0.09962148,92895.0,92894.0,0.010763]
[1764861720725,0.1102235,92890.0,92889.0,0.0107634]
[1764861720930,0.09946,92890.0,92889.0,0.0615134]
[1764861721333,0.09946,92890.0,92876.0,0.01383656]
[1764861721334,0.09946,92877.0,92876.0,0.01383656]
[1764861721633,0.09946,92877.0,92850.0,0.0287]
[1764861721634,0.09946,92847.0,92845.0,0.02878118]
[1764861721824,0.09946,92847.0,92836.0,0.05783368]
[1764861721825,0.09946,92847.0,92831.0,0.38958118]
[1764861722023,0.04838,92847.0,92846.0,0.06420778]
[1764861722533,0.09946,92847.0,92846.0,0.02503496]
[1764861722832,0.00016148,92856.0,92855.0,0.1092875]
[1764861723034,0.00016148,92856.0,92855.0,0.11170752]
[1764861724240,0.00016148,92856.0,92851.0,0.0107678]
[1764861724431,0.10037,92847.0,92846.0,0.51184644]
[1764861724936,0.10037,92847.0,92846.0,0.01184644]
[1764861725333,0.10037,92838.0,92837.0,0.00016148]
[1764861725525,0.10037,92838.0,92837.0,0.01442757]
[1764861725526,0.4719395,92838.0,92837.0,0.01442757]
[1764861725932,0.46117,92838.0,92837.0,0.01200755]
[1764861726334,0.46117,92838.0,92837.0,0.00016148]
[1764861726632,0.10037,92825.0,92824.0,0.01198874]
[1764861726837,0.3608,92825.0,92824.0,0.09736]
[1764861727136,0.3608,92825.0,92804.0,0.3715733]
[1764861727137,0.10037,92807.0,92804.0,0.3715733]
[1764861727433,0.10048134,92807.0,92806.0,0.01472882]
[1764861727637,0.00011134,92807.0,92806.0,0.1000494]
[1764861727934,0.00011134,92807.0,92806.0,0.11187901]
[1764861728241,0.00111134,92807.0,92806.0,0.62387901]
[1764861728835,0.00111134,92807.0,92806.0,0.61687901]
[1764861728836,0.00011134,92807.0,92806.0,0.61687901]
[1764861729336,0.00011134,92807.0,92806.0,0.61887901]
[1764861730039,0.10048134,92807.0,92806.0,0.52151901]
[1764861730240,0.05062134,92807.0,92806.0,0.52151901]
[1764861730531,0.10048134,92807.0,92806.0,0.51651901]
[1764861730732,0.10048134,92807.0,92806.0,0.02551901]
[1764861731132,0.05062134,92807.0,92806.0,0.02551901]
[1764861731333,0.05062134,92807.0,92806.0,0.02151901]
[1764861731928,0.05062134,92807.0,92806.0,0.01751901]
[1764861732736,0.10048134,92807.0,92806.0,0.01809899]
[1764861733136,0.00011134,92807.0,92806.0,0.13306899]
[1764861733435,0.00016157,92816.0,92806.0,0.13306899]
[1764861733436,0.00016157,92816.0,92815.0,0.1081321]
[1764861733634,0.46133157,92816.0,92815.0,0.01319212]
[1764861733839,0.10053157,92816.0,92815.0,0.01319212]
[1764861734036,0.10053157,92816.0,92815.0,0.11055212]
[1764861734037,0.00016157,92816.0,92815.0,0.11055212]
[1764861734431,0.10053157,92816.0,92815.0,0.01319212]
[1764861734637,0.00016157,92816.0,92815.0,0.11055212]
[1764861734825,0.00116157,92816.0,92815.0,0.11055212]
[1764861735240,0.00016157,92816.0,92815.0,0.11255212]
[1764861735429,0.00016157,92816.0,92815.0,0.61755212]
[1764861736040,0.3608,92836.0,92835.0,0.0107698]
[1764861736538,0.41131,92836.0,92835.0,0.0107698]
[1764861737439,0.46117,92836.0,92835.0,0.0107698]
[1764861737639,0.46117,92836.0,92835.0,0.0157698]
[1764861737837,0.3608,92836.0,92835.0,0.1141298]
[1764861738135,0.36096157,92845.0,92844.0,0.0107688]
[1764861738341,0.41147157,92845.0,92844.0,0.11054882]
[1764861738727,0.46133157,92845.0,92844.0,0.11054882]
[1764861738933,0.10053157,92845.0,92844.0,0.11054882]
[1764861739141,0.05067157,92845.0,92844.0,0.11054882]
[1764861739445,0.10053157,92845.0,92844.0,0.01318882]
[1764861739939,0.00016157,92845.0,92844.0,0.47134882]
[1764861740537,0.00116157,92845.0,92844.0,0.47134882]
[1764861741341,0.10053157,92845.0,92844.0,0.01918882]
[1764861741533,0.10053157,92845.0,92844.0,0.06986882]
[1764861741732,0.00016157,92845.0,92844.0,0.47934882]
[1764861742043,0.00016157,92845.0,92844.0,0.48034882]
[1764861742435,0.00016157,92845.0,92844.0,0.47934882]
[1764861743645,0.10053157,92845.0,92844.0,0.01918882]
[1764861743937,0.10053157,92845.0,92844.0,0.00942002]
[1764861744142,0.13053157,92845.0,92844.0,0.002]
[1764861744343,0.10037,92827.0,92824.0,0.010771]
[1764861744638,0.0107698,92836.0,92826.0,0.00258159]
[1764861744943,0.05051,92836.0,92835.0,0.01318982]
[1764861745237,0.10037,92833.0,92832.0,0.0107701]
[1764861745440,0.10037,92827.0,92826.0,0.01093247]
[1764861745646,0.10037,92827.0,92826.0,0.00216157]
[1764861746140,0.10037,92827.0,92826.0,0.05284157]
[1764861746342,0.10037,92827.0,92826.0,0.00216157]
[1764861746533,0.10037,92827.0,92826.0,0.00816157]
[1764861747837,0.05051,92807.0,92806.0,0.02287219]
[1764861748736,0.10037,92807.0,92806.0,0.02287219]
[1764861749835,0.10137,92807.0,92806.0,0.03087219]
[1764861750343,0.10137,92807.0,92806.0,0.03387219]
[1764861751246,0.10137,92807.0,92806.0,0.08455219]
[1764861751547,0.05151,92807.0,92806.0,0.13123219]
[1764861751938,0.10137,92807.0,92806.0,0.03387219]
[1764861752934,0.10137,92807.0,92806.0,0.13123219]
[1764861753339,0.001,92807.0,92806.0,0.13123219]
[1764861754049,0.09657,92807.0,92806.0,0.03387219]
[1764861755142,0.09657,92807.0,92806.0,0.08305219]
[1764861755947,0.09657,92807.0,92806.0,0.03387219]
[1764861757339,0.09657,92807.0,92806.0,0.08305219]
[1764861757639,0.1189,92807.0,92806.0,0.02309899]
[1764861758735,0.1189,92807.0,92806.0,0.02143559]
[1764861758943,0.1269,92807.0,92806.0,0.01443559]
[1764861759642,0.1269,92807.0,92806.0,0.01143559]
[1764861759851,0.1279,92807.0,92806.0,0.01143559]
[1764861761750,0.1279,92807.0,92797.0,0.00016157]
[1764861761751,0.0983841,92798.0,92797.0,0.00016157]
[1764861761951,0.4591841,92798.0,92797.0,0.00016157]
[1764861762148,0.4591841,92798.0,92797.0,0.013795]
[1764861762446,0.08761,92771.0,92770.0,0.03955848]
[1764861762749,0.04209,92780.0,92779.0,0.0107763]
[1764861762940,0.08761,92771.0,92770.0,0.01344705]
[1764861763145,0.08761,92771.0,92766.0,0.0002695]
[1764861763146,0.0983877,92767.0,92766.0,0.0002695]
[1764861763347,0.08761,92767.0,92766.0,0.01616852]
[1764861764649,0.08761,92767.0,92766.0,0.0137485]
[1764861765239,0.09761,92767.0,92766.0,0.0147485]
[1764861765440,0.12761,92767.0,92766.0,0.0147485]
[1764861765650,0.0983888,92758.0,92757.0,0.00016166]
[1764861765954,0.4591888,92758.0,92757.0,0.01370477]
[1764861766254,0.4591888,92758.0,92757.0,0.00016166]
[1764861766753,0.01111938,92767.0,92757.0,0.01571197]
[1764861766956,0.09872938,92767.0,92766.0,0.01319782]
[1764861767254,0.09772938,92767.0,92766.0,0.01319782]
[1764861767447,0.09772938,92767.0,92766.0,0.0107778]
[1764861768054,0.08772938,92767.0,92766.0,0.0107778]
[1764861768254,0.08761,92758.0,92757.0,0.05558195]
[1764861768455,0.08761,92758.0,92757.0,0.06636085]
[1764861768759,0.08761,92758.0,92757.0,0.06536085]
[1764861769150,0.04209,92758.0,92757.0,0.10787085]
[1764861769359,0.04409,92758.0,92757.0,0.10787085]
[1764861769748,0.04409,92758.0,92757.0,0.10887085]
[1764861770552,0.002,92758.0,92757.0,0.10987085]
[1764861770852,0.04409,92758.0,92757.0,0.10987085]
[1764861771048,0.08961,92758.0,92757.0,0.10987085]
[1764861771760,0.08761,92758.0,92757.0,0.10887085]
[1764861771958,0.08961,92758.0,92757.0,0.10987085]
[1764861772264,0.002,92758.0,92757.0,0.10987085]
[1764861772656,0.00011938,92767.0,92766.0,0.0945778]
[1764861772857,0.00011938,92767.0,92766.0,0.45779782]
[1764861773546,0.00011938,92767.0,92766.0,0.95779782]
[1764861774358,0.3608,92782.0,92775.0,0.0945768]
[1764861774658,0.3608,92788.0,92775.0,0.09699682]
[1764861774857,0.22854776,92800.0,92787.0,0.0945754]
[1764861775053,0.44841,92799.0,92788.0,0.0107752]
[1764861775251,0.098385,92791.0,92784.0,0.02518]
[1764861775451,0.3608,92799.0,92790.0,0.00242002]
[1764861775657,0.44841,92799.0,92798.0,0.00242002]
[1764861775852,0.459184,92799.0,92798.0,0.00242002]
[1764861776252,0.462184,92799.0,92798.0,0.00242002]
[1764861777151,0.003,92799.0,92798.0,0.08622002]
[1764861777953,0.00016166,92808.0,92807.0,0.0945731]
[1764861778152,0.00016166,92808.0,92807.0,0.09699312]
[1764861778550,0.08777166,92808.0,92807.0,0.00242002]
[1764861778754,0.08761,92799.0,92798.0,0.001]
[1764861779052,0.44841,92799.0,92798.0,0.001]
[1764861779257,0.44841,92799.0,92798.0,0.00342002]
[1764861779551,0.08761,92793.0,92792.0,0.0107747]
[1764861779859,0.04209,92793.0,92792.0,0.0945747]
[1764861780255,0.04309,92799.0,92798.0,0.0520641]
[1764861780451,0.001,92799.0,92798.0,0.45779412]
[1764861780654,0.00016166,92808.0,92807.0,0.0945731]
[1764861780850,0.3694,92833.0,92825.0,0.0838]
[1764861780851,0.3608,92826.0,92825.0,0.0838]
[1764861781051,0.04552,92809.0,92802.0,0.03852346]
[1764861781257,0.04552,92809.0,92799.0,0.3608]
[1764861781258,0.08761,92809.0,92808.0,0.04371002]
[1764861781461,0.08761,92809.0,92808.0,0.00242002]
[1764861781658,0.44841,92809.0,92808.0,0.08622002]
[1764861782162,0.00016166,92818.0,92808.0,0.08622002]
[1764861782163,0.36096166,92818.0,92817.0,0.0945719]
[1764861782352,0.00016166,92818.0,92817.0,0.09699192]
[1764861782558,0.44857166,92818.0,92817.0,0.00242002]
[1764861783068,0.08761,92810.0,92809.0,0.0107728]
[1764861783562,0.00016166,92818.0,92817.0,0.0945719]
[1764861783764,0.3608,92837.0,92817.0,0.45779192]
[1764861783968,0.3608,92837.0,92836.0,0.0969097]
[1764861784157,0.3608,92844.0,92842.0,0.010769]
[1764861784358,0.0107709,92826.0,92813.0,0.02878118]
[1764861784559,0.3608,92828.0,92810.0,0.02878118]
[1764861784863,0.04522,92819.0,92812.0,0.0107724]
[1764861785168,0.04522,92819.0,92810.0,0.00016157]
[1764861785169,0.08594,92819.0,92818.0,0.00242002]
[1764861785764,0.08594,92819.0,92810.0,0.01350125]
[1764861785765,0.0967126,92811.0,92810.0,0.01350125]
[1764861785969,0.4575126,92811.0,92810.0,0.01450125]
[1764861786468,0.60291386,92820.0,92810.0,0.01450125]
[1764861786469,0.00016157,92828.0,92827.0,0.08614]
[1764861787368,0.00016157,92828.0,92827.0,0.44694]
[1764861787764,0.36096157,92828.0,92827.0,0.08614]
[1764861787967,0.36096157,92828.0,92818.0,0.001]
[1764861787968,0.08594,92819.0,92818.0,0.001]
[1764861788165,0.4575117,92819.0,92818.0,0.00242002]
[1764861789356,0.4575117,92819.0,92810.0,0.01350125]
[1764861789357,0.04522,92811.0,92810.0,0.01350125]
[1764861789561,0.44674,92811.0,92810.0,0.01350125]
[1764861789771,0.0107729,92809.0,92785.0,0.02878118]
[1764861790069,0.08594,92789.0,92788.0,0.0107752]
[1764861790266,0.08594,92789.0,92781.0,0.02395182]
[1764861790267,0.0967152,92789.0,92781.0,0.02395182]
[1764861790468,0.08594,92789.0,92788.0,0.00242002]
[1764861790768,0.44674,92789.0,92788.0,0.00242002]
[1764861790973,0.44674,92789.0,92788.0,0.01319532]
[1764861791160,0.44674,92789.0,92788.0,0.05622532]
[1764861791365,0.00016166,92798.0,92797.0,0.0969142]
[1764861791569,0.00016166,92798.0,92797.0,0.09933422]
[1764861791762,0.08610166,92798.0,92797.0,0.00242002]
[1764861791959,0.00016166,92798.0,92781.0,0.01350731]
[1764861792161,0.00016166,92798.0,92797.0,0.08614]
[1764861792667,0.0107747,92793.0,92790.0,0.010775]
[1764861792861,0.09987576,92798.0,92797.0,0.00342002]
[1764861793574,0.09987576,92798.0,92797.0,0.001]
[1764861793962,0.10087576,92798.0,92797.0,0.001]
[1764861794163,0.10087576,92798.0,92797.0,0.00342002]
[1764861794363,0.0967145,92795.0,92794.0,0.0107745]
[1764861795564,0.0977145,92795.0,92794.0,0.0107745]
[1764861795771,0.05422,92795.0,92794.0,0.0979145]
[1764861795971,0.009,92795.0,92794.0,0.0979145]
[1764861796473,0.09494,92795.0,92794.0,0.001]
[1764861796766,0.09494,92795.0,92794.0,0.04645002]
[1764861797774,0.009,92795.0,92794.0,0.08956002]
[1764861799670,0.3608,92802.0,92801.0,0.0107738]
[1764861799968,0.3608,92807.0,92806.0,0.1207632]
[1764861800159,0.3608,92807.0,92806.0,0.12318322]
[1764861800360,0.3608,92822.0,92820.0,0.0107715]
[1764861800669,0.40602,92822.0,92821.0,0.08614]
[1764861800873,0.04522,92820.0,92819.0,0.0107716]
[1764861801166,0.010772,92817.0,92815.0,0.010772]
[1764861801360,0.08594,92817.0,92816.0,0.00242002]
[1764861801565,0.0967124,92813.0,92812.0,0.00016166]
[1764861802067,0.0967124,92813.0,92787.0,0.3608]
[1764861802068,0.0967124,92813.0,92797.0,0.0107741]
[1764861802292,0.0967124,92813.0,92792.0,0.06237346]
[1764861802293,0.0107745,92795.0,92792.0,0.02385]
[1764861802568,0.3608,92793.0,92791.0,0.0107749]
[1764861802776,0.3608,92793.0,92792.0,0.04545002]
[1764861803073,0.3608,92793.0,92792.0,0.05622482]
[1764861803975,0.44674,92793.0,92792.0,0.05622482]
[1764861804174,0.04522,92786.0,92783.0,0.03868512]
[1764861804369,0.04522,92786.0,92785.0,0.00242002]
[1764861804564,0.0559956,92786.0,92785.0,0.00242002]
[1764861805276,0.0559956,92786.0,92785.0,0.04545002]
[1764861805476,0.04522,92786.0,92785.0,0.05622562]
[1764861805677,0.04522,92786.0,92785.0,0.04645002]
[1764861805975,0.04522,92786.0,92785.0,0.05045002]
[1764861806177,0.08594,92786.0,92785.0,0.00742002]
[1764861806373,0.11594,92786.0,92785.0,0.005]
[1764861806570,0.08594,92784.0,92783.0,0.00016166]
[1764861806774,0.0967177,92767.0,92765.0,0.03852346]
[1764861806972,0.0967177,92767.0,92766.0,0.00242002]
[1764861807175,0.0967177,92767.0,92765.0,0.0107779]
[1764861807176,0.40602,92766.0,92765.0,0.0107779]
[1764861807373,0.3608,92766.0,92761.0,0.0107783]
[1764861807575,0.0107786,92759.0,92758.0,0.0107787]
[1764861807872,8.267e-05,92759.0,92758.0,0.0969187]
[1764861809068,8.267e-05,92759.0,92758.0,0.0999187]
[1764861809276,8.267e-05,92759.0,92758.0,0.04603]
[1764861809277,0.08602267,92759.0,92758.0,0.04603]
[1764861809468,8.267e-05,92759.0,92758.0,0.08914]
[1764861810185,0.05766023,92804.0,92758.0,0.88060683]
[1764861810473,0.38514,92806.0,92791.0,0.3715749]
[1764861810474,0.11028,92792.0,92791.0,0.3715749]
[1764861810676,0.11028,92792.0,92791.0,0.3608]
[1764861810862,0.08594,92784.0,92783.0,0.3715759]
[1764861811973,0.02434,92792.0,92791.0,0.0107749]
[1764861811974,0.06956,92792.0,92791.0,0.0107749]
[1764861812177,0.06956,92792.0,92791.0,0.01319492]
[1764861812569,0.02434,92792.0,92791.0,0.37399492]
[1764861813078,0.11028,92792.0,92791.0,0.01319492]
[1764861813466,0.11528,92792.0,92791.0,0.01319492]
[1764861813777,0.02934,92792.0,92791.0,0.42213492]
[1764861814170,0.07392,92792.0,92791.0,0.42213492]
[1764861814570,0.06892,92792.0,92791.0,0.42313492]
[1764861814966,0.12718,92792.0,92791.0,0.42413492]
[1764861816082,0.12718,92792.0,92791.0,0.42313492]
[1764861816280,0.12718,92792.0,92791.0,0.42513492]
[1764861816583,0.00016166,92793.0,92792.0,0.04814]
[1764861816779,0.00016166,92793.0,92792.0,0.05056002]
[1764861817084,0.02434,92806.0,92805.0,0.0107733]
[1764861817286,0.12718,92806.0,92805.0,0.0107733]
[1764861818273,0.007,92806.0,92805.0,0.0599133]
[1764861818968,0.04958,92806.0,92805.0,0.0599133]
[1764861819579,0.04358,92806.0,92805.0,0.0589133]
[1764861819774,0.04658,92806.0,92805.0,0.0589133]
[1764861820375,0.04358,92806.0,92805.0,0.0609133]
[1764861820878,0.04358,92806.0,92805.0,0.0599133]
[1764861821078,0.04358,92806.0,92805.0,0.0619133]
[1764861821387,0.00016166,92815.0,92814.0,0.0589123]
[1764861821680,0.00016166,92815.0,92814.0,0.42213232]
[1764861822979,0.05971166,92815.0,92814.0,0.42213232]
[1764861823381,0.00016166,92815.0,92814.0,0.42413232]
[1764861823584,0.371569,92842.0,92832.0,0.0107702]
[1764861823772,0.09556,92833.0,92832.0,0.0299602]
[1764861823977,0.09556,92833.0,92832.0,0.0491502]
[1764861824183,0.15074,92833.0,92832.0,0.0491502]
[1764861824381,0.15074,92833.0,92832.0,0.02534989]
[1764861824801,0.15074,92833.0,92832.0,0.01457969]
[1764861825084,0.11473,92826.0,92825.0,0.3608]
[1764861825287,0.11473,92826.0,92825.0,0.371571]
[1764861825484,0.11473,92826.0,92825.0,0.3608]
[1764861825689,0.1255018,92818.0,92817.0,0.03839761]
[1764861826190,0.11473,92816.0,92815.0,0.0107721]
[1764861826386,0.03313,92820.0,92814.0,0.3608]
[1764861826387,0.1255021,92815.0,92814.0,0.3608]
[1764861826782,0.11473,92813.0,92812.0,0.05764521]
[1764861826982,0.11473,92809.0,92808.0,0.0107729]
[1764861827685,0.11473,92806.0,92805.0,0.00016166]
[1764861828078,0.11473,92806.0,92805.0,0.00258168]
[1764861828680,0.11473,92806.0,92805.0,0.02193168]
[1764861829179,0.11473,92806.0,92805.0,0.0363111]
[1764861829785,0.11473,92806.0,92805.0,0.0413111]
[1764861829983,0.03313,92807.0,92805.0,0.0606611]
[1764861830292,0.11473,92818.0,92817.0,0.0107718]
[1764861830681,0.05955,92818.0,92817.0,0.0494718]
[1764861830987,0.03313,92820.0,92819.0,0.0387]
[1764861831187,0.14786,92820.0,92819.0,0.04112002]
[1764861831381,0.14786,92820.0,92819.0,0.00242002]
[1764861831782,0.14786,92820.0,92819.0,0.02177002]
[1764861832094,0.03313,92820.0,92819.0,0.04112002]
[1764861832394,0.09268,92820.0,92819.0,0.04212002]
[1764861832595,0.14786,92820.0,92819.0,0.04212002]
[1764861833390,0.14786,92820.0,92819.0,0.003]
[1764861834291,0.03313,92820.0,92819.0,0.0397]
[1764861834494,0.09268,92820.0,92819.0,0.0417]
[1764861834684,0.09268,92820.0,92819.0,0.0407]
[1764861834886,0.09268,92820.0,92819.0,0.0417]
[1764861835087,0.14786,92820.0,92819.0,0.0417]
[1764861835398,0.09268,92820.0,92819.0,0.0417]
[1764861835788,0.14786,92820.0,92819.0,0.003]
[1764861835993,0.14786,92820.0,92819.0,0.001]
[1764861836192,0.14786,92820.0,92819.0,0.00542002]
[1764861838796,0.14786,92820.0,92819.0,0.003]
[1764861840495,0.1255032,92806.0,92798.0,0.03841566]
[1764861840693,0.1255032,92806.0,92785.0,0.3715756]
[1764861840694,0.1255032,92806.0,92794.0,0.03841566]
[1764861840996,0.1255032,92806.0,92785.0,0.3715756]
[1764861840997,0.11473,92789.0,92785.0,0.3608]
[1764861841190,0.11473,92789.0,92771.0,0.03841566]
[1764861841191,0.125507,92773.0,92771.0,0.03841566]
[1764861841384,0.11473,92762.0,92761.0,0.03841566]
[1764861841594,0.11473,92759.0,92758.0,0.0107787]
[1764861841795,0.1255087,92759.0,92754.0,0.0107791]
[1764861841999,0.11473,92755.0,92754.0,0.0107792]
[1764861842204,9.82e-05,92758.0,92757.0,0.11465]
[1764861842498,9.82e-05,92758.0,92757.0,0.11707002]
[1764861842700,9.82e-05,92758.0,92757.0,0.47787002]
[1764861842998,0.11473,92755.0,92754.0,0.01488032]
[1764861843202,0.0107789,92757.0,92752.0,0.0107794]
[1764861843403,0.11473,92753.0,92752.0,0.0107794]
[1764861843898,0.11473,92753.0,92752.0,0.02532816]
[1764861844104,0.11473,92753.0,92752.0,0.01454876]
[1764861844299,0.15576,92750.0,92749.0,0.00016166]
[1764861844489,0.1327117,92733.0,92727.0,0.0107824]
[1764861844694,0.1327117,92733.0,92726.0,0.00026961]
[1764861844695,0.00010775,92733.0,92726.0,0.00026961]
[1764861844900,0.00010775,92733.0,92732.0,0.13353182]
[1764861845099,0.00010775,92733.0,92732.0,0.49433182]
[1764861845497,0.12203775,92733.0,92732.0,0.37400182]
[1764861845902,0.12503775,92733.0,92732.0,0.37400182]
[1764861846101,0.12503775,92733.0,92732.0,0.00242002]
[1764861846607,0.12203775,92733.0,92732.0,0.003]
[1764861848193,0.12503775,92733.0,92732.0,0.001]
[1764861848397,0.12503775,92733.0,92732.0,0.00342002]
[1764861848800,0.12603775,92733.0,92732.0,0.00342002]
[1764861849301,0.12603775,92733.0,92732.0,0.001]
[1764861849503,0.12503775,92733.0,92732.0,0.00242002]
[1764861849701,0.12503775,92733.0,92729.0,0.010782]
[1764861849898,0.12193,92728.0,92727.0,0.01481331]
[1764861850093,0.12193,92728.0,92727.0,0.0107824]
[1764861850406,0.12193,92728.0,92727.0,0.02512976]
[1764861850603,0.12193,92728.0,92727.0,0.01434736]
[1764861850904,0.1327124,92727.0,92726.0,0.00026961]
[1764861851291,0.1327124,92727.0,92726.0,0.01473037]
[1764861851500,0.1327124,92727.0,92726.0,0.00026961]
[1764861851804,0.12193,92724.0,92715.0,0.0107837]
[1764861852008,0.48273,92724.0,92718.0,0.0107834]
[1764861852409,0.48273,92724.0,92721.0,0.010783]
[1764861852606,0.48273,92724.0,92713.0,0.0108934]
[1764861852811,0.12193,92714.0,92713.0,0.0001095]
[1764861853107,0.12193,92694.0,92693.0,0.3608]
[1764861853612,9.024e-05,92714.0,92713.0,0.12033]
[1764861854200,0.12202024,92714.0,92713.0,0.05777]
[1764861854706,0.12193,92713.0,92712.0,0.3608]
[1764861855424,0.1327149,92705.0,92704.0,0.00016176]
[1764861855709,0.12193,92705.0,92704.0,0.00016176]
[1764861856697,0.48273,92705.0,92704.0,0.00016176]
[1764861856902,0.1669362,92694.0,92693.0,0.3753509]
[1764861857106,0.12193,92694.0,92693.0,0.3861372]
[1764861858102,0.15615,92694.0,92693.0,0.3753509]
[1764861858412,0.15623868,92694.0,92693.0,0.0145509]
[1764861858614,0.15623868,92694.0,92693.0,0.001]
[1764861858915,0.132717,92687.0,92686.0,0.00026973]
[1764861859804,0.132717,92687.0,92686.0,0.01498412]
[1764861860009,0.132717,92687.0,92686.0,0.02577122]
[1764861860313,0.132717,92687.0,92686.0,0.01698412]
[1764861861108,0.12193,92687.0,92686.0,0.01698412]
[1764861861409,0.12193,92687.0,92686.0,0.01898412]
[1764861861710,0.1327186,92673.0,92670.0,0.0107889]
[1764861861901,0.13282384,92673.0,92672.0,0.00254141]
[1764861862105,0.13282384,92673.0,92672.0,0.00012139]
[1764861862698,0.13282384,92673.0,92672.0,0.01486769]
[1764861862899,0.13382384,92673.0,92672.0,0.02386769]
[1764861864306,0.12303524,92673.0,92672.0,0.02386769]
[1764861864613,0.12203524,92673.0,92672.0,0.02086769]
[1764861865316,0.05994,92647.0,92646.0,0.01106165]
[1764861865608,0.03422,92664.0,92646.0,0.01106165]
[1764861865609,0.12209185,92656.0,92655.0,0.0107907]
[1764861865815,0.00016185,92656.0,92655.0,0.1311207]
[1764861866212,0.1221994,92656.0,92655.0,0.0107907]
[1764861866613,0.0107909,92654.0,92652.0,0.010791]
[1764861866909,0.03422,92651.0,92649.0,0.0107914]
[1764861867112,0.12193,92650.0,92649.0,0.0107914]